bitfinex-derivatives/quotes_ETHF0:USTF0_20260112
["timestamp","ask_amount","ask_price","bid_price","bid_amount"]
[1768208767978,4.12893509,3119.2,3117.6,1.88358]
[1768208768179,0.81659693,3119.1,3117.6,1.88358]
[1768208768476,3.31233816,3119.8,3118.0,0.16056]
[1768208768779,3.31233816,3119.6,3118.0,0.16056]
[1768208768981,0.81647104,3119.5,3118.0,0.16056]
[1768208770178,3.31233816,3119.4,3118.0,0.16056]
[1768208770383,4.12868135,3119.3,3118.0,0.16056]
[1768208770582,3.31233816,3119.3,3118.0,0.16056]
[1768208770785,4.31840411,3119.2,3118.0,0.16056]
[1768208770983,3.50195821,3119.2,3118.0,0.16056]
[1768208771179,3.50195821,3119.2,3117.9,0.00263541]
[1768208772273,3.50195821,3119.0,3117.9,0.00263541]
[1768208772872,2.2626239,3119.9,3117.2,42.519]
[1768208772873,3.50195821,3118.8,3117.2,1.719]
[1768208773077,3.50195821,3118.6,3117.2,1.719]
[1768208773984,3.50195821,3118.6,3117.2,1.72248122]
[1768208779280,3.50195821,3118.6,3117.2,1.88308122]
[1768208780895,3.50195821,3118.6,3117.3,0.1606]
[1768208781293,3.50195821,3118.6,3117.4,0.16059]
[1768208781593,3.50195821,3119.3,3117.5,0.16058]
[1768208781893,3.50195821,3119.3,3117.2,1.72248122]
[1768208781894,4.3158238,3119.2,3117.3,3.59184561]
[1768208782094,4.3158238,3119.1,3117.3,3.59184561]
[1768208782290,4.3158238,3119.0,3117.3,3.59184561]
[1768208782490,0.81386559,3118.9,3117.4,40.8]
[1768208782691,3.50195821,3119.0,3117.7,0.16058]
[1768208783590,3.50195821,3119.7,3117.9,3.59184561]
[1768208783793,4.31621841,3119.6,3118.0,1.753]
[1768208783992,0.8142602,3119.5,3118.0,1.753]
[1768208784191,3.50195821,3119.6,3118.0,1.753]
[1768208784389,3.50195821,3119.6,3118.2,0.16055]
[1768208785398,0.81470207,3119.5,3118.2,0.16055]
[1768208785602,3.50195821,3119.6,3118.2,0.16055]
[1768208786304,0.81487359,3119.5,3118.2,0.16055]
[1768208786597,3.50195821,3119.6,3118.2,0.16055]
[1768208786900,4.31691052,3119.5,3118.2,0.16055]
[1768208787089,3.50195821,3119.5,3118.2,0.16055]
[1768208790298,3.50195821,3119.5,3118.3,0.16055]
[1768208790902,3.50195821,3119.9,3118.5,0.16054]
[1768208791100,0.81513262,3119.8,3118.6,0.16053]
[1768208791300,3.50195821,3119.9,3118.7,0.16053]
[1768208791500,0.81538974,3119.8,3118.8,1.747]
[1768208791800,3.50195821,3119.9,3118.8,1.90752]
[1768208792001,0.81535868,3119.8,3118.8,1.90752]
[1768208792202,3.50195821,3119.9,3118.8,1.90752]
[1768208792395,0.81558221,3119.8,3118.8,1.90752]
[1768208792597,3.50195821,3119.9,3118.8,1.90752]
[1768208792798,0.8155684,3119.8,3118.8,1.90752]
[1768208792994,3.50195821,3119.9,3118.8,1.90752]
[1768208793198,3.50195821,3120.3,3118.8,1.747]
[1768208793405,0.0040754,3120.6,3118.8,5.33884561]
[1768208793606,0.81577595,3120.5,3118.8,5.33884561]
[1768208793803,0.81577595,3120.4,3118.8,5.33884561]
[1768208794003,3.50603361,3120.6,3119.4,0.16049]
[1768208794203,0.0040754,3120.6,3119.7,0.16047]
[1768208794408,0.0040754,3120.6,3119.7,0.16368611]
[1768208796205,0.0040754,3120.6,3119.7,1.90468611]
[1768208800101,0.0040754,3120.6,3119.8,0.16047]
[1768208800304,0.0040754,3120.6,3119.7,1.74421611]
[1768208801407,3.49556946,3121.0,3119.7,1.74421611]
[1768208801408,3.49556946,3121.0,3119.9,1.23446876]
[1768208801604,3.49556946,3121.4,3120.3,1.23446876]
[1768208802310,0.00382216,3121.4,3120.7,1.23446876]
[1768208802702,3.49556946,3121.9,3120.7,1.23446876]
[1768208803207,3.49556946,3121.9,3120.7,1.39488876]
[1768208803409,3.49556946,3121.9,3120.7,0.16042]
[1768208803810,3.49867281,3121.9,3120.7,0.16042]
[1768208805308,0.00310335,3121.9,3120.9,0.16041]
[1768208806612,0.00310335,3121.9,3120.9,1.93241]
[1768208807411,3.49867281,3121.9,3120.9,0.16041]
[1768208809314,0.00310335,3121.9,3120.9,0.16041]
[1768208812020,3.49867281,3121.9,3120.9,0.16041]
[1768208814327,0.81610008,3121.8,3120.9,0.16041]
[1768208814526,3.49867281,3121.9,3120.9,0.16041]
[1768208814726,0.81609805,3121.8,3120.9,0.16041]
[1768208815027,3.49867281,3121.9,3120.9,0.16041]
[1768208815225,0.8160982,3121.8,3120.9,0.16041]
[1768208815425,3.49867281,3121.9,3120.9,0.16041]
[1768208815725,4.31184786,3121.8,3120.9,0.16041]
[1768208816021,3.49556946,3121.8,3120.9,0.16041]
[1768208816327,3.49556946,3121.6,3120.9,0.16041]
[1768208817028,0.00310335,3121.9,3120.9,0.16041]
[1768208817227,0.81655191,3121.8,3120.9,0.16041]
[1768208817419,0.81655191,3121.7,3120.9,0.16041]
[1768208817621,0.81655191,3121.6,3120.9,0.16041]
[1768208817913,0.00310335,3121.9,3120.9,0.16041]
[1768208818115,0.81673345,3121.8,3120.9,0.16041]
[1768208818315,0.81673345,3121.7,3121.0,0.16041]
[1768208818519,0.81673345,3121.6,3121.0,0.16041]
[1768208818729,0.00310335,3121.9,3121.0,0.16041]
[1768208818927,0.81714573,3121.8,3121.0,0.16041]
[1768208819227,0.81714573,3121.7,3121.0,0.16041]
[1768208819429,0.81714573,3121.6,3121.0,0.16041]
[1768208819640,0.00310335,3121.9,3121.0,0.16041]
[1768208819942,0.81761501,3121.8,3121.0,0.16041]
[1768208820240,0.81761501,3121.7,3121.1,0.1604]
[1768208820432,0.00310335,3121.9,3121.1,0.1604]
[1768208821039,0.00310335,3121.9,3121.2,0.16039]
[1768208821841,0.00310335,3121.9,3121.3,0.16039]
[1768208822246,0.00310335,3121.9,3121.4,0.16039]
[1768208823443,0.00310335,3121.9,3120.6,5.19673873]
[1768208823444,3.49867281,3121.9,3121.0,0.1604]
[1768208823647,3.49867281,3121.9,3121.1,0.1604]
[1768208824238,3.49867281,3121.9,3120.6,42.55]
[1768208824239,3.49867281,3121.9,3121.2,0.1604]
[1768208825449,3.49867281,3121.9,3121.4,1.23366885]
[1768208825744,0.00310335,3121.9,3121.4,1.23366885]
[1768208825948,3.43332863,3122.3,3121.8,1.23366885]
[1768208826138,3.43332863,3122.3,3121.7,1.23366885]
[1768208826850,3.43332863,3122.3,3121.3,0.16039]
[1768208827140,3.43584378,3122.3,3121.6,1.23366885]
[1768208827345,3.43584378,3122.3,3121.7,1.23366885]
[1768208827346,0.00251515,3122.3,3121.7,1.23366885]
[1768208828340,0.00251515,3122.3,3121.5,1.39404885]
[1768208828543,3.43584378,3122.3,3121.0,1.758]
[1768208828849,3.43584378,3122.3,3121.4,1.23366885]
[1768208829541,3.43584378,3122.3,3121.0,1.23366885]
[1768208829740,3.75365437,3122.2,3121.0,1.23366885]
[1768208829942,3.43332863,3122.2,3121.0,1.23366885]
[1768208830142,3.43332863,3122.2,3121.2,1.23366885]
[1768208830654,3.43332863,3122.2,3121.4,1.23366885]
[1768208831348,0.32058761,3122.1,3121.4,1.23366885]
[1768208831546,3.43332863,3122.2,3120.9,0.16041]
[1768208831746,0.32060478,3122.1,3121.3,1.23366885]
[1768208831946,3.35434269,3122.1,3121.3,1.23366885]
[1768208832344,3.67510748,3122.0,3120.9,0.16041]
[1768208832648,4.16844532,3121.9,3120.9,0.16041]
[1768208832844,0.81410263,3121.8,3120.9,0.16041]
[1768208833152,0.81410263,3121.7,3120.9,0.16041]
[1768208833347,0.81410263,3121.6,3120.9,0.16041]
[1768208833554,0.81410263,3121.5,3120.9,0.16041]
[1768208833849,0.81410263,3121.4,3121.0,1.23366885]
[1768208834047,0.81410263,3121.4,3120.3,1.23366885]
[1768208834048,0.81410263,3121.3,3120.3,0.16044]
[1768208834242,0.81410263,3121.2,3120.4,1.23366885]
[1768208834440,0.81410263,3121.1,3120.3,0.16044]
[1768208834650,0.81410263,3121.0,3120.6,1.23366885]
[1768208834946,3.35434269,3121.4,3120.6,1.23366885]
[1768208835154,0.814055,3121.3,3120.6,1.23366885]
[1768208835453,0.814055,3121.2,3120.6,1.23366885]
[1768208835652,0.8138669,3121.1,3120.6,1.23366885]
[1768208835946,0.8138669,3121.0,3120.6,1.23366885]
[1768208836150,3.35434269,3121.4,3120.6,1.23366885]
[1768208836339,0.81374765,3121.3,3120.6,1.23366885]
[1768208836543,0.81374765,3121.2,3120.6,1.23366885]
[1768208836738,0.81374765,3121.1,3120.6,1.23366885]
[1768208836952,0.81374765,3121.0,3120.6,1.23366885]
[1768208837152,3.35434269,3121.4,3120.6,1.22350698]
[1768208837354,0.81372515,3121.3,3120.6,1.23366885]
[1768208837554,0.81372515,3121.2,3120.6,1.23366885]
[1768208837748,0.81372515,3121.1,3120.6,1.23366885]
[1768208837952,0.81372515,3121.0,3120.6,1.23366885]
[1768208838153,5.61696659,3121.8,3120.9,1.23366885]
[1768208838458,1.1340798,3121.7,3120.9,1.23366885]
[1768208838753,1.1340798,3121.6,3120.9,1.23366885]
[1768208839055,0.81355439,3121.5,3120.9,1.23366885]
[1768208839256,10.342,3122.1,3121.3,1.23366885]
[1768208839445,0.3205197,3122.0,3121.3,1.23366885]
[1768208839641,10.342,3122.1,3121.1,1.23366885]
[1768208839857,0.3205188,3122.0,3121.1,1.23366885]
[1768208840047,3.35434269,3122.2,3120.8,0.16042]
[1768208840248,3.67479563,3122.1,3121.1,1.23366885]
[1768208840446,0.32045294,3122.0,3121.1,1.23366885]
[1768208840851,3.35434269,3122.1,3121.3,1.23366885]
[1768208841451,3.35434269,3122.1,3121.1,0.1604]
[1768208842055,0.00251515,3122.3,3121.1,0.1604]
[1768208842356,0.32034118,3122.2,3121.2,0.1604]
[1768208842656,0.00251515,3122.3,3121.2,0.1604]
[1768208842860,0.32035633,3122.2,3121.3,0.16039]
[1768208843157,0.00251515,3122.3,3121.3,0.16039]
[1768208843359,0.3204958,3122.2,3121.3,0.16039]
[1768208843554,0.00251515,3122.3,3121.3,0.16039]
[1768208843753,0.3204987,3122.2,3121.3,0.16039]
[1768208843961,0.00251515,3122.3,3121.3,0.16039]
[1768208844164,0.32048767,3122.2,3121.3,0.16039]
[1768208844350,0.00251515,3122.3,3121.3,0.16039]
[1768208844550,0.32048793,3122.2,3121.3,0.16039]
[1768208844849,0.00251515,3122.3,3121.3,0.16039]
[1768208846455,0.00251515,3122.3,3121.4,0.16039]
[1768208846656,0.00251515,3122.3,3121.5,0.16038]
[1768208847067,0.00251515,3122.3,3121.6,0.16038]
[1768208847253,0.00251515,3122.3,3121.7,0.16037]
[1768208853164,3.35685784,3122.3,3121.1,0.1604]
[1768208853562,0.81160499,3122.2,3121.0,1.739]
[1768208853765,0.81160499,3122.1,3121.3,0.16039]
[1768208853967,3.35685784,3122.3,3121.3,0.16039]
[1768208854167,0.81160053,3122.2,3121.3,0.16039]
[1768208854468,0.81160053,3122.1,3121.3,0.16039]
[1768208854665,3.35685784,3122.3,3121.3,0.16039]
[1768208854865,0.81153369,3122.2,3121.3,0.16039]
[1768208855055,0.81153369,3122.1,3121.3,0.16039]
[1768208855256,3.35685784,3122.3,3121.3,0.16039]
[1768208855458,0.81150807,3122.2,3121.3,0.16039]
[1768208855659,0.81150807,3122.1,3121.3,0.16039]
[1768208855968,0.00251515,3122.3,3121.0,7.28445981]
[1768208856266,0.81153234,3122.2,3121.0,7.28445981]
[1768208856461,0.00251515,3122.3,3121.0,7.28445981]
[1768208856657,0.81148715,3122.2,3121.0,7.28445981]
[1768208856861,0.00251515,3122.3,3121.0,7.28445981]
[1768208857156,0.8115348,3122.2,3121.0,7.28445981]
[1768208857357,0.00251515,3122.3,3121.0,7.28445981]
[1768208857563,0.81155084,3122.2,3121.5,0.16038]
[1768208857763,0.00251515,3122.3,3121.5,0.16038]
[1768208858068,0.8116303,3122.2,3121.5,0.16038]
[1768208858265,0.00251515,3122.3,3121.5,0.16038]
[1768208858459,0.81282123,3122.2,3121.5,0.16038]
[1768208858663,0.00251515,3122.3,3121.5,0.16038]
[1768208858969,0.81282249,3122.2,3121.5,0.16038]
[1768208859168,0.00251515,3122.3,3121.7,0.16037]
[1768208859969,0.00251515,3122.3,3121.1,3.7337544]
[1768208860373,0.00251515,3122.3,3121.2,1.734]
[1768208860571,0.81317081,3122.2,3121.1,0.1604]
[1768208860775,0.00251515,3122.3,3121.2,1.734]
[1768208860970,0.81318477,3122.2,3121.2,1.734]
[1768208861171,0.00251515,3122.3,3121.2,1.734]
[1768208861472,0.81313502,3122.2,3121.6,1.23352061]
[1768208861671,0.00251515,3122.3,3121.6,1.23352061]
[1768208861873,0.81313781,3122.2,3121.6,1.23352061]
[1768208862076,0.00251515,3122.3,3121.6,1.23352061]
[1768208862374,0.81313804,3122.2,3121.6,1.23352061]
[1768208862573,0.81316869,3122.1,3121.2,1.23352061]
[1768208862771,3.61972155,3122.3,3121.2,1.23352061]
[1768208862979,3.6172064,3122.0,3120.8,1.23352061]
[1768208863173,4.43032709,3121.9,3120.8,1.23352061]
[1768208863372,0.81287901,3121.8,3120.8,1.23352061]
[1768208863672,0.81287901,3121.7,3120.8,1.23352061]
[1768208863880,3.6172064,3121.9,3121.0,1.23352061]
[1768208864179,0.81291229,3121.8,3121.0,1.23352061]
[1768208864376,0.81291229,3121.7,3121.0,1.23352061]
[1768208864577,3.6172064,3121.9,3121.0,1.23352061]
[1768208864772,0.81298877,3121.8,3121.0,1.23352061]
[1768208864974,0.81298877,3121.7,3121.0,1.23352061]
[1768208865165,3.6172064,3121.9,3121.0,1.23352061]
[1768208865368,0.81299986,3121.8,3121.0,1.23352061]
[1768208865571,0.81299986,3121.7,3121.0,1.23352061]
[1768208865872,3.61972155,3122.3,3121.4,1.23352061]
[1768208866068,1.1335397,3122.2,3121.4,1.23352061]
[1768208866273,1.1335397,3122.1,3121.4,1.23352061]
[1768208866573,0.81312483,3122.0,3121.6,1.23352061]
[1768208866781,0.81312483,3121.9,3121.6,1.23352061]
[1768208866976,3.61972155,3122.3,3121.6,1.23352061]
[1768208867176,0.81342568,3122.2,3121.6,1.23352061]
[1768208867483,0.81342568,3122.1,3121.8,1.23352061]
[1768208867775,0.00251515,3122.3,3121.8,1.23352061]
[1768208868184,3.6172064,3122.7,3121.8,1.23352061]
[1768208868390,0.32071319,3122.6,3121.8,1.23352061]
[1768208868694,0.32071319,3122.5,3121.8,1.23352061]
[1768208868991,0.32071319,3122.4,3121.8,1.23352061]
[1768208869194,0.00351539,3122.5,3121.8,1.23352061]
[1768208869495,0.3208239,3122.4,3121.8,1.23352061]
[1768208869685,0.00351539,3122.5,3121.8,1.23352061]
[1768208870087,0.00351539,3122.5,3121.2,3.11892061]
[1768208870395,0.00351539,3122.5,3121.8,1.23352061]
[1768208872097,0.00351539,3122.5,3122.0,1.23352061]
[1768208872394,0.00351539,3122.5,3122.0,1.23626585]
[1768208874789,5.8798303,3123.1,3122.2,1.23352061]
[1768208875093,0.32089228,3123.0,3122.2,1.23352061]
[1768208875292,0.32089228,3122.9,3122.2,1.23352061]
[1768208875491,0.32089228,3122.8,3122.2,1.23352061]
[1768208875692,0.32089228,3122.7,3122.2,1.23352061]
[1768208875888,0.00260703,3122.8,3122.2,1.23352061]
[1768208876093,0.32089514,3122.7,3122.2,1.23352061]
[1768208876293,2.2626239,3123.2,3122.6,1.23352061]
[1768208876494,0.32093167,3123.1,3122.6,1.23352061]
[1768208876696,0.32093167,3123.0,3122.5,1.23352061]
[1768208876890,2.2626239,3123.4,3122.5,1.23352061]
[1768208877092,0.32091406,3123.3,3122.5,1.23352061]
[1768208877292,0.32091406,3123.2,3122.5,1.23352061]
[1768208877487,0.32091406,3123.1,3122.7,1.23352061]
[1768208877801,0.00414177,3123.3,3122.5,1.23352061]
[1768208878000,0.00414177,3123.3,3122.3,1.23352061]
[1768208878198,3.62134817,3123.3,3122.3,1.23352061]
[1768208879601,0.80516842,3123.2,3122.3,1.23352061]
[1768208879792,0.80516842,3123.1,3122.3,1.23352061]
[1768208879995,0.80516842,3123.0,3122.3,1.23352061]
[1768208880191,0.80516842,3122.9,3122.0,0.00274524]
[1768208880393,0.80516842,3122.8,3122.3,1.23352061]
[1768208880589,3.62134817,3123.3,3122.3,1.23352061]
[1768208880800,0.80494569,3123.2,3122.3,1.23352061]
[1768208881002,0.80494569,3123.1,3122.3,1.23352061]
[1768208881301,0.80494569,3123.0,3122.0,0.00274524]
[1768208881501,0.80494569,3122.9,3122.0,0.00274524]
[1768208881703,0.80494569,3122.8,3122.0,0.00274524]
[1768208881899,3.62134817,3123.3,3122.0,0.00274524]
[1768208882095,4.42173848,3123.2,3122.0,0.00274524]
[1768208882301,3.6172064,3123.0,3122.0,0.00274524]
[1768208882502,3.6172064,3122.8,3122.0,0.00274524]
[1768208882697,0.80453208,3122.7,3122.0,0.00274524]
[1768208882903,0.80453208,3122.6,3122.0,0.00274524]
[1768208883203,0.80453208,3122.5,3122.0,0.00274524]
[1768208883393,0.80453208,3122.4,3121.2,1.39329103]
[1768208883594,3.6172064,3122.8,3121.2,1.39329103]
[1768208883794,0.80429749,3122.7,3121.2,1.39329103]
[1768208883996,0.80429749,3122.6,3121.3,1.23289103]
[1768208884197,0.80429749,3122.5,3121.3,1.23289103]
[1768208884404,0.80429749,3122.4,3121.3,1.23546425]
[1768208884605,3.5211982,3123.1,3121.3,1.23546425]
[1768208884801,0.80430714,3123.0,3121.3,1.23546425]
[1768208885000,4.32550534,3122.9,3121.3,1.23546425]
[1768208885203,0.80430714,3122.8,3121.3,1.23546425]
[1768208885806,4.48582534,3122.8,3121.3,0.00257322]
[1768208886005,3.5211982,3122.6,3121.3,0.00257322]
[1768208886201,3.5211982,3122.4,3121.3,0.00257322]
[1768208886504,4.32550534,3122.3,3121.3,0.00257322]
[1768208886709,4.32550534,3122.2,3121.3,0.00257322]
[1768208886900,4.32550534,3122.1,3121.3,0.00257322]
[1768208887097,0.80430714,3122.0,3121.3,0.00257322]
[1768208890005,4.32550534,3122.0,3120.7,0.16042]
[1768208890304,4.32550534,3122.0,3120.6,1.23289103]
[1768208890305,4.32550534,3121.9,3120.6,1.23289103]
[1768208890511,0.80430714,3121.8,3120.6,1.23289103]
[1768208890805,0.80430714,3121.7,3120.3,4.78440242]
[1768208891010,0.80430714,3121.6,3120.3,4.78720125]
[1768208891203,0.80430714,3121.5,3120.3,4.78720125]
[1768208891398,3.44135729,3121.8,3120.3,4.78720125]
[1768208891599,4.24354579,3121.7,3120.3,0.00279883]
[1768208891910,0.8021885,3121.6,3120.3,0.00279883]
[1768208892108,0.8021885,3121.5,3120.3,1.23568986]
[1768208892310,3.44135729,3121.7,3120.3,1.23568986]
[1768208892506,0.80194348,3121.6,3120.3,1.23568986]
[1768208892815,0.80194348,3121.5,3120.3,1.23568986]
[1768208893112,3.44135729,3121.7,3120.3,1.23568986]
[1768208893312,0.80182616,3121.6,3120.3,1.23568986]
[1768208893514,3.44135729,3121.7,3120.3,1.23568986]
[1768208893712,0.80180282,3121.6,3120.3,1.23568986]
[1768208894010,3.44135729,3121.7,3120.3,1.23568986]
[1768208894207,0.80180282,3121.6,3120.3,1.23568986]
[1768208894509,3.44135729,3121.7,3120.3,1.23568986]
[1768208894808,0.80169022,3121.6,3120.3,1.23568986]
[1768208895110,3.44135729,3121.7,3120.3,1.23568986]
[1768208895410,0.8018597,3121.6,3120.3,1.23568986]
[1768208895613,3.44135729,3121.7,3120.3,1.23568986]
[1768208895914,0.80186331,3121.6,3120.3,1.23568986]
[1768208896110,3.44135729,3121.7,3120.3,1.23568986]
[1768208896311,0.80175824,3121.6,3120.3,1.23568986]
[1768208896511,3.44135729,3121.7,3120.3,1.23568986]
[1768208896812,0.80172859,3121.6,3120.3,1.23568986]
[1768208897011,3.44135729,3121.7,3120.3,1.23568986]
[1768208897211,0.80172509,3121.6,3120.3,1.23568986]
[1768208897513,3.44135729,3121.7,3120.3,1.23568986]
[1768208897815,0.80154546,3121.6,3120.3,1.23568986]
[1768208898119,3.44135729,3122.1,3120.7,1.23289103]
[1768208898307,0.80147303,3122.0,3120.7,1.23289103]
[1768208898508,0.80147303,3121.9,3120.7,1.23289103]
[1768208898707,0.80147303,3121.8,3120.7,1.23289103]
[1768208899010,3.44135729,3122.1,3120.7,1.23289103]
[1768208899200,0.80146052,3122.0,3120.7,1.23289103]
[1768208899404,0.80146052,3121.9,3120.7,1.23289103]
[1768208899712,0.80146052,3121.8,3120.7,1.23289103]
[1768208899912,3.44135729,3122.1,3120.7,1.23289103]
[1768208900211,0.80139834,3122.0,3120.7,1.23289103]
[1768208900409,0.80139834,3121.9,3120.7,1.23289103]
[1768208900610,0.80139834,3121.8,3120.7,1.23289103]
[1768208900811,3.44135729,3122.1,3120.7,1.23289103]
[1768208901004,4.24267521,3122.0,3120.4,0.16044]
[1768208901204,3.44135729,3121.8,3120.4,0.16044]
[1768208903216,3.44135729,3121.8,3120.7,1.23289103]
[1768208904924,3.60170729,3122.2,3120.7,1.23289103]
[1768208905220,0.80120176,3122.1,3120.7,1.23289103]
[1768208905515,0.80120176,3122.0,3120.7,1.23289103]
[1768208905718,0.80120176,3121.9,3120.7,1.23289103]
[1768208905917,0.80120176,3121.8,3120.7,1.23289103]
[1768208906219,3.60170729,3122.2,3120.7,1.23289103]
[1768208906420,0.80127563,3122.1,3120.7,1.23289103]
[1768208906610,0.80127563,3122.0,3120.7,1.23289103]
[1768208906811,0.80127563,3121.9,3120.7,1.23289103]
[1768208907012,0.80127563,3121.8,3120.7,1.23289103]
[1768208907212,3.60170729,3122.2,3120.7,1.23289103]
[1768208907512,0.80143056,3122.1,3120.7,1.23289103]
[1768208907713,0.80143056,3122.0,3120.7,1.23289103]
[1768208907913,0.80143056,3121.9,3120.7,1.23289103]
[1768208908220,0.80143056,3121.8,3120.7,1.23289103]
[1768208908420,0.80143056,3121.7,3120.7,1.23289103]
[1768208908620,3.60170729,3122.2,3120.7,1.23289103]
[1768208908819,4.24300563,3122.1,3120.7,1.23289103]
[1768208909020,0.80164834,3122.0,3120.7,1.23289103]
[1768208913823,0.31809556,3121.9,3120.7,1.23289103]
[1768208914012,1.1197439,3121.8,3120.7,1.23289103]
[1768208914218,1.1197439,3121.7,3120.7,1.23289103]
[1768208914419,0.80164834,3121.6,3120.7,1.23289103]
[1768208914623,0.80164834,3121.5,3120.7,1.23289103]
[1768208914822,0.80164834,3121.4,3120.7,1.23289103]
[1768208915022,5.70398119,3122.1,3120.7,1.23289103]
[1768208915224,5.99733343,3122.0,3120.7,1.23289103]
[1768208915424,3.73470953,3121.9,3120.5,1.84643]
[1768208915724,3.73470953,3121.8,3120.5,1.84643]
[1768208915920,0.31822491,3121.7,3120.5,1.84643]
[1768208917728,0.31822491,3121.7,3120.8,1.23289103]
[1768208917927,0.31822491,3121.6,3120.8,1.23289103]
[1768208918129,2.2626239,3122.0,3120.8,1.23289103]
[1768208918330,0.3185914,3121.9,3120.8,1.23289103]
[1768208918522,0.3185914,3121.8,3120.8,1.23289103]
[1768208918718,0.3185914,3121.7,3120.8,1.23289103]
[1768208919032,2.2626239,3122.0,3120.8,1.23289103]
[1768208920525,3.41648462,3121.9,3120.8,1.23289103]
[1768208925332,3.41648462,3121.9,3120.7,1.23289103]
[1768208926837,3.41648462,3121.9,3120.6,0.16043]
[1768208927037,4.21919224,3121.8,3120.6,0.16043]
[1768208927239,0.80270762,3121.7,3120.6,0.16043]
[1768208928538,4.21919224,3121.7,3120.6,0.16043]
[1768208928739,0.80270762,3121.6,3120.6,0.16043]
[1768208929238,4.21919224,3121.6,3120.4,2.91289103]
[1768208929540,4.21919224,3121.5,3120.4,1.23289103]
[1768208929732,0.80270762,3121.4,3120.4,1.23289103]
[1768208935942,4.21919224,3121.4,3120.3,1.68279883]
[1768208936138,4.53584195,3121.3,3120.3,0.00279883]
[1768208936444,3.41648462,3121.1,3120.3,0.00279883]
[1768208936637,4.21919224,3121.0,3120.3,0.00279883]
[1768208936835,0.80270762,3120.9,3120.3,0.00279883]
[1768208937041,0.80270762,3120.9,3119.7,1.84247]
[1768208937239,4.21919224,3120.9,3119.7,1.84247]
[1768208937433,0.80270762,3120.8,3119.7,1.84247]
[1768208937636,4.21882695,3120.7,3119.5,2.91389103]
[1768208937842,0.80234233,3120.6,3119.5,2.91389103]
[1768208938042,0.80234233,3120.6,3119.5,2.91653776]
[1768208938342,3.41648462,3120.7,3119.5,2.91653776]
[1768208938643,0.80189198,3120.6,3119.5,2.91653776]
[1768208938840,3.41648462,3120.7,3119.5,2.91653776]
[1768208939048,0.80189039,3120.6,3119.5,2.91653776]
[1768208939243,3.41943987,3121.1,3119.5,2.91653776]
[1768208939552,3.41648462,3120.9,3119.5,2.91653776]
[1768208939741,0.8015577,3120.8,3119.5,2.91653776]
[1768208939947,0.8015577,3120.7,3119.5,2.91653776]
[1768208940146,3.41648462,3120.9,3119.5,2.91653776]
[1768208940346,0.80150911,3120.8,3119.5,2.91653776]
[1768208940648,0.80150911,3120.7,3119.5,2.91653776]
[1768208940948,3.41648462,3120.9,3119.5,2.91653776]
[1768208941147,0.80121704,3120.8,3119.5,2.91653776]
[1768208941447,0.80121704,3120.7,3119.9,1.23480626]
[1768208941748,3.41648462,3120.9,3119.8,1.23480626]
[1768208941943,3.41648462,3120.7,3119.8,1.23480626]
[1768208942250,3.41648462,3120.7,3120.0,1.23480626]
[1768208943247,3.41943987,3121.1,3120.0,1.23480626]
[1768208943444,0.80048026,3121.0,3120.0,1.23480626]
[1768208943739,0.80048026,3120.9,3120.0,1.23480626]
[1768208943943,0.80048026,3120.8,3120.0,1.23480626]
[1768208944144,0.80048026,3120.7,3120.0,1.23480626]
[1768208944346,3.41943987,3121.1,3120.0,1.23480626]
[1768208944546,4.13720738,3121.0,3120.0,1.23480626]
[1768208944750,4.13720738,3120.9,3120.0,1.23480626]
[1768208944953,5.37201364,3120.8,3119.5,0.00264673]
[1768208945246,3.33708863,3120.6,3119.5,0.00264673]
[1768208945438,3.33708863,3120.4,3119.5,0.00264673]
[1768208945644,4.136777,3120.3,3119.2,2.91380626]
[1768208945846,3.33708863,3120.3,3119.4,1.23480626]
[1768208946851,3.33708863,3120.3,3119.4,1.23869143]
[1768208947350,3.33708863,3120.3,3119.4,0.00388517]
[1768208947650,3.33708863,3120.0,3118.8,1.23480626]
[1768208947945,3.33708863,3119.8,3118.7,1.23480626]
[1768208948346,3.33708863,3119.8,3118.4,1.678]
[1768208948347,3.33708863,3119.8,3118.9,1.23480626]
[1768208948552,3.33708863,3119.8,3119.1,1.23480626]
[1768208948750,3.33708863,3119.8,3118.9,0.00363667]
[1768208949055,3.33708863,3119.8,3119.0,1.23480626]
[1768208950347,3.33708863,3119.8,3118.9,1.23844293]
[1768208951852,3.55258152,3120.2,3118.9,0.00363667]
[1768208952053,0.80343303,3120.1,3119.5,1.23480626]
[1768208952354,3.55258152,3120.2,3119.3,1.23480626]
[1768208952555,0.80325525,3120.1,3119.3,1.23480626]
[1768208952754,3.55258152,3120.8,3119.7,1.23480626]
[1768208953052,3.55258152,3120.6,3119.7,1.23480626]
[1768208953254,0.80341515,3120.5,3119.7,1.23480626]
[1768208954756,3.55553677,3121.1,3120.2,1.23480626]
[1768208955253,0.00295525,3121.1,3120.6,1.23480626]
[1768208956154,0.00295525,3121.1,3120.8,1.23480626]
[1768208956353,3.71293152,3121.9,3120.8,1.23480626]
[1768208956551,3.86745349,3121.8,3120.8,1.23480626]
[1768208956749,3.55258152,3121.3,3119.4,3.61749784]
[1768208956954,3.55258152,3121.3,3120.0,1.23480626]
[1768208957356,3.55258152,3121.3,3119.5,1.525]
[1768208957357,3.55666345,3121.3,3120.2,1.23480626]
[1768208957552,3.55666345,3121.3,3120.4,1.23480626]
[1768208957755,0.00408193,3121.3,3120.6,1.23480626]
[1768208957955,3.55258152,3122.1,3121.2,1.23480626]
[1768208958153,0.31497922,3122.0,3121.2,1.23480626]
[1768208958354,3.55258152,3122.1,3121.0,1.23480626]
[1768208958656,0.31499383,3122.0,3121.0,1.23480626]
[1768208958853,3.55258152,3122.1,3121.0,1.23480626]
[1768208959056,3.86761107,3122.0,3120.8,1.23480626]
[1768208959252,3.55258152,3122.0,3120.8,1.23480626]
[1768208960265,3.55258152,3122.0,3121.0,1.23480626]
[1768208960954,3.55258152,3122.0,3121.4,1.23480626]
[1768208961864,0.00336925,3122.1,3121.6,1.23480626]
[1768208962062,0.00336925,3122.1,3121.4,1.23480626]
[1768208962465,0.00336925,3122.1,3121.2,1.23480626]
[1768208962770,3.55595077,3122.1,3121.0,1.23480626]
[1768208962968,0.00336925,3122.1,3121.2,1.23480626]
[1768208963163,0.00336925,3122.1,3121.3,1.23480626]
[1768208963867,3.55595077,3122.1,3121.1,1.23480626]
[1768208964662,0.00336925,3122.1,3121.7,1.23480626]
[1768208964870,0.00336925,3122.1,3121.5,1.23480626]
[1768208965168,0.00336925,3122.1,3121.3,1.23480626]
[1768208966365,0.00336925,3122.1,3121.5,1.23480626]
[1768208967163,3.55595077,3122.1,3120.8,0.1604]
[1768208967366,3.55595077,3122.1,3121.3,1.23480626]
[1768208969568,3.55595077,3122.1,3120.8,0.1604]
[1768208969773,3.55595077,3122.1,3121.2,1.23480626]
[1768208971476,3.55258152,3122.0,3120.3,0.16349033]
[1768208971682,3.55258152,3122.0,3120.6,1.23480626]
[1768208972179,0.80429181,3121.9,3120.6,1.23480626]